[Event "Titled Tuesday Blitz July 13 2021"]
[White "Salazar Cabezas, Alberto Javier"]
[Black "Mikhalsky, Vladimir"]
[WhiteFideId "6104401"]
[BlackFideId "14144352"]
[WhiteElo "1893"]
[BlackElo "2280"]
[Result "1-0"]
[Round "11"]
[TimeControl "180+1"]
[Date "2021.07.13"]
[WhiteClock "0:01:03"]
[BlackClock "0:00:13"]

1. Nf3 {[%clk 0:03:00]}  c5 {[%clk 0:01:31]} 2. c4 {[%clk 0:03:00]}  Nf6 {[%clk 0:01:30]} 3. Nc3 {[%clk 0:03:01]}  d5 {[%clk 0:01:29]} 4. cxd5 {[%clk 0:03:00]}  Nxd5 {[%clk 0:01:28]} 5. e3 {[%clk 0:02:59]}  Nc6 {[%clk 0:01:26]} 6. d4 {[%clk 0:03:00]}  Nxc3 {[%clk 0:01:25]} 7. bxc3 {[%clk 0:02:59]}  g6 {[%clk 0:01:25]} 8. Bc4 {[%clk 0:02:57]}  Bg7 {[%clk 0:01:25]} 9. O-O {[%clk 0:02:56]}  O-O {[%clk 0:01:23]} 10. a4 {[%clk 0:02:56]}  e5 {[%clk 0:01:18]} 11. Ba3 {[%clk 0:02:53]}  Na5 {[%clk 0:00:46]} 12. Ba2 {[%clk 0:02:50]}  e4 {[%clk 0:00:45]} 13. Nd2 {[%clk 0:02:49]}  b6 {[%clk 0:00:40]} 14. Nxe4 {[%clk 0:02:45]}  Re8 {[%clk 0:00:39]} 15. Qd3 {[%clk 0:02:26]}  Bb7 {[%clk 0:00:34]} 16. Ng3 {[%clk 0:02:22]}  cxd4 {[%clk 0:00:25]} 17. cxd4 {[%clk 0:02:21]}  Qd7 {[%clk 0:00:24]} 18. Bb4 {[%clk 0:02:02]}  Nc6 {[%clk 0:00:22]} 19. Ba3 {[%clk 0:01:56]}  Na5 {[%clk 0:00:20]} 20. Bb4 {[%clk 0:01:54]}  Nc6 {[%clk 0:00:20]} 21. Bd2 {[%clk 0:01:54]}  Ne7 {[%clk 0:00:19]} 22. Rfc1 {[%clk 0:01:46]}  Nd5 {[%clk 0:00:18]} 23. e4 {[%clk 0:01:39]}  Nf6 {[%clk 0:00:17]} 24. d5 {[%clk 0:01:36]}  h5 {[%clk 0:00:15]} 25. Bc3 {[%clk 0:01:29]}  h4 {[%clk 0:00:14]} 26. Bxf6 {[%clk 0:01:14]}  Bxf6 {[%clk 0:00:14]} 27. Ne2 {[%clk 0:01:13]}  Bxa1 {[%clk 0:00:14]} 28. Rxa1 {[%clk 0:01:14]}  Qxa4 {[%clk 0:00:14]} 29. d6 {[%clk 0:01:04]}  Rad8 {[%clk 0:00:13]} 30. Bxf7+ {[%clk 0:01:03]}  Kxf7 {[%clk 0:00:13]} 31. Rxa4 {[%clk 0:01:03]} 1-0


[Site "https://www.chess.com"]

[Event "Titled Tuesday Blitz July 13 2021"]
[White "Semcesen, Daniel"]
[Black "shnitez"]
[WhiteFideId "1706993"]
[WhiteElo "2505"]
[BlackElo "2449"]
[Result "0-1"]
[Round "11"]
[TimeControl "180+1"]
[Date "2021.07.13"]
[WhiteClock "0:00:18"]
[BlackClock "0:00:06"]

1. d4 {[%clk 0:02:57]}  Nf6 {[%clk 0:02:59]} 2. c4 {[%clk 0:02:56]}  e6 {[%clk 0:02:59]} 3. Nc3 {[%clk 0:02:55]}  Bb4 {[%clk 0:02:58]} 4. e3 {[%clk 0:02:55]}  b6 {[%clk 0:02:57]} 5. Nf3 {[%clk 0:02:53]}  Bb7 {[%clk 0:02:57]} 6. Bd2 {[%clk 0:02:53]}  O-O {[%clk 0:02:56]} 7. Bd3 {[%clk 0:02:53]}  d6 {[%clk 0:02:54]} 8. O-O {[%clk 0:02:48]}  Nbd7 {[%clk 0:02:54]} 9. a3 {[%clk 0:02:42]}  Bxc3 {[%clk 0:02:53]} 10. Bxc3 {[%clk 0:02:43]}  Ne4 {[%clk 0:02:54]} 11. Be1 {[%clk 0:02:35]}  f5 {[%clk 0:02:52]} 12. Nd2 {[%clk 0:02:33]}  Qg5 {[%clk 0:02:49]} 13. f4 {[%clk 0:02:13]}  Qh6 {[%clk 0:02:41]} 14. Nxe4 {[%clk 0:02:09]}  Bxe4 {[%clk 0:02:39]} 15. Bxe4 {[%clk 0:02:07]}  fxe4 {[%clk 0:02:40]} 16. Qc2 {[%clk 0:02:06]}  Nf6 {[%clk 0:02:26]} 17. h3 {[%clk 0:01:57]}  c6 {[%clk 0:01:35]} 18. Bb4 {[%clk 0:01:51]}  Rad8 {[%clk 0:01:30]} 19. a4 {[%clk 0:01:42]}  a5 {[%clk 0:01:21]} 20. Bd2 {[%clk 0:01:43]}  g5 {[%clk 0:01:09]} 21. b4 {[%clk 0:01:38]}  axb4 {[%clk 0:01:09]} 22. Bxb4 {[%clk 0:01:36]}  g4 {[%clk 0:00:58]} 23. Qf2 {[%clk 0:01:24]}  gxh3 {[%clk 0:00:56]} 24. Qg3+ {[%clk 0:01:21]}  Kf7 {[%clk 0:00:55]} 25. Qxh3 {[%clk 0:01:21]}  Qxh3 {[%clk 0:00:54]} 26. gxh3 {[%clk 0:01:22]}  c5 {[%clk 0:00:47]} 27. Bc3 {[%clk 0:01:20]}  Nh5 {[%clk 0:00:32]} 28. Kf2 {[%clk 0:01:19]}  Rg8 {[%clk 0:00:32]} 29. Rg1 {[%clk 0:01:15]}  Rxg1 {[%clk 0:00:30]} 30. Rxg1 {[%clk 0:01:15]}  Ra8 {[%clk 0:00:30]} 31. Ra1 {[%clk 0:00:52]}  Ng7 {[%clk 0:00:23]} 32. a5 {[%clk 0:00:46]}  bxa5 {[%clk 0:00:22]} 33. Rxa5 {[%clk 0:00:45]}  Rxa5 {[%clk 0:00:21]} 34. Bxa5 {[%clk 0:00:46]}  cxd4 {[%clk 0:00:18]} 35. exd4 {[%clk 0:00:47]}  Nf5 {[%clk 0:00:19]} 36. Bc3 {[%clk 0:00:47]}  Ke7 {[%clk 0:00:16]} 37. Ke2 {[%clk 0:00:31]}  Kd7 {[%clk 0:00:16]} 38. Kd2 {[%clk 0:00:28]}  Kc6 {[%clk 0:00:16]} 39. Ke2 {[%clk 0:00:23]}  Kd7 {[%clk 0:00:11]} 40. Bb4 {[%clk 0:00:22]}  Nxd4+ {[%clk 0:00:09]} 41. Kd2 {[%clk 0:00:21]}  Nf5 {[%clk 0:00:06]} 42. c5 {[%clk 0:00:22]}  d5 {[%clk 0:00:05]} 43. Bc3 {[%clk 0:00:22]}  Kc6 {[%clk 0:00:05]} 44. Be5 {[%clk 0:00:21]}  Kxc5 {[%clk 0:00:05]} 45. Kc3 {[%clk 0:00:22]}  d4+ {[%clk 0:00:05]} 46. Kd2 {[%clk 0:00:21]}  Kc4 {[%clk 0:00:05]} 47. Bf6 {[%clk 0:00:20]}  e3+ {[%clk 0:00:05]} 48. Ke2 {[%clk 0:00:20]}  Kc3 {[%clk 0:00:05]} 49. Be5 {[%clk 0:00:19]}  Kc2 {[%clk 0:00:04]} 50. Bxd4 {[%clk 0:00:18]}  Nxd4+ {[%clk 0:00:05]} 51. Kxe3 {[%clk 0:00:18]}  Nf5+ {[%clk 0:00:02]} 52. Ke4 {[%clk 0:00:18]}  Ne7 {[%clk 0:00:01]} 53. Ke5 {[%clk 0:00:19]}  Ng6+ {[%clk 0:00:01]} 54. Kf6 {[%clk 0:00:17]}  Nxf4 {[%clk 0:00:01]} 55. Ke5 {[%clk 0:00:16]}  Nxh3 {[%clk 0:00:02]} 56. Kxe6 {[%clk 0:00:16]}  Nf4+ {[%clk 0:00:02]} 57. Kf5 {[%clk 0:00:17]}  Ng6 {[%clk 0:00:03]} 58. Kg5 {[%clk 0:00:17]}  Nf8 {[%clk 0:00:04]} 59. Kh6 {[%clk 0:00:17]}  Kd3 {[%clk 0:00:05]} 60. Kg7 {[%clk 0:00:18]}  Ke4 {[%clk 0:00:05]} 61. Kxf8 {[%clk 0:00:17]}  h5 {[%clk 0:00:05]} 62. Kg7 {[%clk 0:00:18]}  h4 {[%clk 0:00:06]} 0-1


[Site "https://www.chess.com"]

[Event "Titled Tuesday Blitz July 13 2021"]
[White "Shafigullina, Zarina"]
[Black "Sellitti, Federico"]
[WhiteFideId "24174220"]
[BlackFideId "821829"]
[WhiteElo "2087"]
[BlackElo "2568"]
[Result "1-0"]
[Round "11"]
[TimeControl "180+1"]
[Date "2021.07.13"]
[WhiteClock "0:00:17"]
[BlackClock "0:00:02"]

1. d4 {[%clk 0:03:00]}  d5 {[%clk 0:02:58]} 2. Nf3 {[%clk 0:03:00]}  Nc6 {[%clk 0:02:59]} 3. g3 {[%clk 0:03:00]}  Bg4 {[%clk 0:02:58]} 4. Bg2 {[%clk 0:03:00]}  Qd7 {[%clk 0:02:58]} 5. O-O {[%clk 0:02:59]}  Bh3 {[%clk 0:02:58]} 6. c4 {[%clk 0:02:56]}  Bxg2 {[%clk 0:02:41]} 7. Kxg2 {[%clk 0:02:55]}  h5 {[%clk 0:02:41]} 8. cxd5 {[%clk 0:02:53]}  Qxd5 {[%clk 0:02:35]} 9. Nc3 {[%clk 0:02:52]}  Qd7 {[%clk 0:02:36]} 10. d5 {[%clk 0:02:50]}  Nd8 {[%clk 0:02:23]} 11. e4 {[%clk 0:02:49]}  f6 {[%clk 0:01:57]} 12. Nh4 {[%clk 0:02:43]}  Kf7 {[%clk 0:01:54]} 13. e5 {[%clk 0:02:34]}  fxe5 {[%clk 0:01:43]} 14. Qd3 {[%clk 0:02:33]}  Nf6 {[%clk 0:01:30]} 15. Ng6 {[%clk 0:01:58]}  Kg8 {[%clk 0:01:13]} 16. Nxh8 {[%clk 0:01:56]}  Kxh8 {[%clk 0:01:13]} 17. Qg6 {[%clk 0:01:49]}  e6 {[%clk 0:01:03]} 18. Bg5 {[%clk 0:01:43]}  exd5 {[%clk 0:00:56]} 19. Bxf6 {[%clk 0:01:36]}  gxf6 {[%clk 0:00:56]} 20. Qxf6+ {[%clk 0:01:30]}  Bg7 {[%clk 0:00:57]} 21. Qg6 {[%clk 0:01:26]}  Ne6 {[%clk 0:00:46]} 22. Rad1 {[%clk 0:01:21]}  c6 {[%clk 0:00:44]} 23. Qxh5+ {[%clk 0:01:15]}  Kg8 {[%clk 0:00:45]} 24. Ne4 {[%clk 0:01:13]}  Qe7 {[%clk 0:00:30]} 25. Nd2 {[%clk 0:01:07]}  Rf8 {[%clk 0:00:29]} 26. h4 {[%clk 0:00:57]}  Qf6 {[%clk 0:00:25]} 27. b3 {[%clk 0:00:51]}  e4 {[%clk 0:00:21]} 28. Qe2 {[%clk 0:00:35]}  Qg6 {[%clk 0:00:20]} 29. Kh1 {[%clk 0:00:32]}  Qf5 {[%clk 0:00:13]} 30. Nb1 {[%clk 0:00:28]}  Be5 {[%clk 0:00:12]} 31. Nd2 {[%clk 0:00:26]}  Qh3+ {[%clk 0:00:09]} 32. Kg1 {[%clk 0:00:24]}  Rf4 {[%clk 0:00:06]} 33. Qh5 {[%clk 0:00:20]}  Rf5 {[%clk 0:00:01]} 34. Qg6+ {[%clk 0:00:19]}  Ng7 {[%clk 0:00:02]} 35. Nxe4 {[%clk 0:00:17]} 1-0


[Site "https://www.chess.com"]

[Event "Titled Tuesday Blitz July 13 2021"]
[White "Stoyanov, Tsvetan"]
[Black "Aleksandr_Kozak"]
[WhiteFideId "2917173"]
[WhiteElo "2198"]
[BlackElo "2447"]
[Result "1-0"]
[Round "11"]
[TimeControl "180+1"]
[Date "2021.07.13"]
[WhiteClock "0:01:15"]
[BlackClock "0:00:20"]

1. e4 {[%clk 0:03:00]}  e5 {[%clk 0:02:58]} 2. Nf3 {[%clk 0:03:01]}  Nc6 {[%clk 0:02:58]} 3. d4 {[%clk 0:03:00]}  exd4 {[%clk 0:02:58]} 4. Nxd4 {[%clk 0:03:01]}  Qf6 {[%clk 0:02:58]} 5. Nxc6 {[%clk 0:03:00]}  Bc5 {[%clk 0:02:57]} 6. Qf3 {[%clk 0:03:00]}  dxc6 {[%clk 0:02:50]} 7. Nc3 {[%clk 0:02:59]}  Be6 {[%clk 0:02:49]} 8. Be3 {[%clk 0:02:57]}  Bb4 {[%clk 0:02:29]} 9. Bd2 {[%clk 0:02:53]}  O-O-O {[%clk 0:02:26]} 10. a3 {[%clk 0:02:49]}  Ba5 {[%clk 0:02:15]} 11. O-O-O {[%clk 0:02:44]}  Qxf3 {[%clk 0:01:33]} 12. gxf3 {[%clk 0:02:45]}  Ne7 {[%clk 0:01:30]} 13. h4 {[%clk 0:02:40]}  h5 {[%clk 0:01:19]} 14. Be2 {[%clk 0:02:29]}  Rd7 {[%clk 0:01:12]} 15. f4 {[%clk 0:02:27]}  g6 {[%clk 0:01:11]} 16. Na4 {[%clk 0:02:18]}  Rxd2 {[%clk 0:01:07]} 17. Rxd2 {[%clk 0:02:19]}  Bxd2+ {[%clk 0:01:07]} 18. Kxd2 {[%clk 0:02:20]}  b6 {[%clk 0:01:05]} 19. Ke3 {[%clk 0:02:18]}  Re8 {[%clk 0:00:58]} 20. f3 {[%clk 0:02:18]}  Bd7 {[%clk 0:00:54]} 21. Nc3 {[%clk 0:02:14]}  Nd5+ {[%clk 0:00:52]} 22. Nxd5 {[%clk 0:02:13]}  cxd5 {[%clk 0:00:52]} 23. Rd1 {[%clk 0:02:06]}  dxe4 {[%clk 0:00:50]} 24. fxe4 {[%clk 0:02:07]}  c5 {[%clk 0:00:48]} 25. Ba6+ {[%clk 0:01:38]}  Kc7 {[%clk 0:00:47]} 26. Rxd7+ {[%clk 0:01:38]}  Kxd7 {[%clk 0:00:47]} 27. Bb5+ {[%clk 0:01:39]}  Ke7 {[%clk 0:00:48]} 28. Bxe8 {[%clk 0:01:40]}  Kxe8 {[%clk 0:00:48]} 29. f5 {[%clk 0:01:39]}  gxf5 {[%clk 0:00:45]} 30. exf5 {[%clk 0:01:39]}  f6 {[%clk 0:00:44]} 31. Ke4 {[%clk 0:01:38]}  Ke7 {[%clk 0:00:43]} 32. Kd5 {[%clk 0:01:37]}  Kd7 {[%clk 0:00:43]} 33. a4 {[%clk 0:01:31]}  a6 {[%clk 0:00:35]} 34. b3 {[%clk 0:01:20]}  a5 {[%clk 0:00:20]} 35. c4 {[%clk 0:01:15]} 1-0


[Site "https://www.chess.com"]

[Event "Titled Tuesday Blitz July 13 2021"]
[White "Tejedor Fuente, Enrique"]
[Black "Shevelev, Dmitri"]
[WhiteFideId "2299100"]
[BlackFideId "2802627"]
[WhiteElo "2535"]
[BlackElo "2262"]
[Result "0-1"]
[Round "11"]
[TimeControl "180+1"]
[Date "2021.07.13"]
[WhiteClock "0:00:29"]
[BlackClock "0:00:01"]

1. c4 {[%clk 0:02:41]}  g6 {[%clk 0:02:59]} 2. g3 {[%clk 0:02:40]}  Bg7 {[%clk 0:03:00]} 3. Bg2 {[%clk 0:02:41]}  c6 {[%clk 0:02:56]} 4. Nc3 {[%clk 0:02:42]}  d6 {[%clk 0:02:56]} 5. d4 {[%clk 0:02:42]}  f6 {[%clk 0:02:56]} 6. Nf3 {[%clk 0:02:42]}  Nh6 {[%clk 0:02:57]} 7. O-O {[%clk 0:02:43]}  Nf7 {[%clk 0:02:58]} 8. d5 {[%clk 0:02:44]}  e5 {[%clk 0:02:56]} 9. dxc6 {[%clk 0:02:44]}  bxc6 {[%clk 0:02:55]} 10. b3 {[%clk 0:02:45]}  O-O {[%clk 0:02:53]} 11. Bb2 {[%clk 0:02:45]}  Bb7 {[%clk 0:02:50]} 12. Qd2 {[%clk 0:02:46]}  Qe7 {[%clk 0:02:37]} 13. Rfd1 {[%clk 0:02:45]}  Rd8 {[%clk 0:02:37]} 14. Ne1 {[%clk 0:02:44]}  f5 {[%clk 0:02:34]} 15. Rac1 {[%clk 0:02:43]}  Bh6 {[%clk 0:02:33]} 16. e3 {[%clk 0:02:43]}  f4 {[%clk 0:02:30]} 17. exf4 {[%clk 0:02:43]}  exf4 {[%clk 0:02:24]} 18. Qd4 {[%clk 0:02:42]}  fxg3 {[%clk 0:02:07]} 19. hxg3 {[%clk 0:02:43]}  Nd7 {[%clk 0:01:47]} 20. Nf3 {[%clk 0:02:41]}  Nde5 {[%clk 0:01:43]} 21. Nxe5 {[%clk 0:02:41]}  dxe5 {[%clk 0:01:42]} 22. Qg4 {[%clk 0:02:39]}  Bxc1 {[%clk 0:01:41]} 23. Rxc1 {[%clk 0:02:39]}  Rd2 {[%clk 0:01:32]} 24. Rb1 {[%clk 0:02:38]}  Rad8 {[%clk 0:00:55]} 25. Ne4 {[%clk 0:02:37]}  Rc2 {[%clk 0:00:44]} 26. c5 {[%clk 0:02:33]}  Ba6 {[%clk 0:00:40]} 27. Bf3 {[%clk 0:02:28]}  Bd3 {[%clk 0:00:36]} 28. Ba1 {[%clk 0:02:28]}  Bxe4 {[%clk 0:00:33]} 29. Qxe4 {[%clk 0:02:26]}  Qxc5 {[%clk 0:00:18]} 30. Rf1 {[%clk 0:02:24]}  Rdd2 {[%clk 0:00:17]} 31. Qe1 {[%clk 0:02:17]}  Ng5 {[%clk 0:00:12]} 32. Bg2 {[%clk 0:02:17]}  e4 {[%clk 0:00:11]} 33. Bf6 {[%clk 0:02:16]}  h6 {[%clk 0:00:08]} 34. Bxg5 {[%clk 0:02:15]}  hxg5 {[%clk 0:00:08]} 35. Bxe4 {[%clk 0:02:15]}  Rxa2 {[%clk 0:00:07]} 36. Bxg6 {[%clk 0:02:15]}  Kg7 {[%clk 0:00:05]} 37. Bb1 {[%clk 0:02:14]}  Rab2 {[%clk 0:00:04]} 38. Qe4 {[%clk 0:02:13]}  Rxf2 {[%clk 0:00:03]} 39. Qh7+ {[%clk 0:02:08]}  Kf8 {[%clk 0:00:02]} 40. Qh8+ {[%clk 0:01:44]}  Ke7 {[%clk 0:00:02]} 41. Qh7+ {[%clk 0:00:30]}  Rf7+ {[%clk 0:00:02]} 42. Kh1 {[%clk 0:00:30]}  Rxh7+ {[%clk 0:00:02]} 43. Bxh7 {[%clk 0:00:31]}  Qd5+ {[%clk 0:00:01]} 44. Rf3 {[%clk 0:00:29]}  Qxf3+ {[%clk 0:00:01]} 0-1


[Site "https://www.chess.com"]

[Event "Titled Tuesday Blitz July 13 2021"]
[White "Tong, Hai Anh"]
[Black "Deviprasath, Sharvesh"]
[WhiteFideId "12412805"]
[BlackFideId "30938228"]
[WhiteElo "1467"]
[BlackElo "2102"]
[Result "1-0"]
[Round "11"]
[TimeControl "180+1"]
[Date "2021.07.13"]
[WhiteClock "0:00:02"]
[BlackClock "0:00:04"]

1. Nf3 {[%clk 0:03:00]}  Nf6 {[%clk 0:02:02]} 2. g3 {[%clk 0:03:01]}  g6 {[%clk 0:02:03]} 3. Bg2 {[%clk 0:03:01]}  Bg7 {[%clk 0:02:04]} 4. O-O {[%clk 0:03:02]}  O-O {[%clk 0:02:05]} 5. d4 {[%clk 0:03:03]}  d6 {[%clk 0:02:05]} 6. c4 {[%clk 0:03:00]}  Nbd7 {[%clk 0:02:05]} 7. Nc3 {[%clk 0:02:59]}  e5 {[%clk 0:02:06]} 8. b4 {[%clk 0:02:28]}  a5 {[%clk 0:02:03]} 9. b5 {[%clk 0:02:28]}  exd4 {[%clk 0:01:57]} 10. Nxd4 {[%clk 0:02:26]}  Nc5 {[%clk 0:01:57]} 11. Nb3 {[%clk 0:02:21]}  Ne6 {[%clk 0:01:37]} 12. Qc2 {[%clk 0:02:17]}  Nd7 {[%clk 0:01:26]} 13. Bb2 {[%clk 0:02:11]}  Ndc5 {[%clk 0:01:19]} 14. Nxc5 {[%clk 0:02:07]}  Nxc5 {[%clk 0:01:19]} 15. Ne4 {[%clk 0:02:02]}  Bf5 {[%clk 0:01:08]} 16. Bxg7 {[%clk 0:02:00]}  Kxg7 {[%clk 0:01:09]} 17. Qc3+ {[%clk 0:01:58]}  f6 {[%clk 0:01:09]} 18. Nxc5 {[%clk 0:01:58]}  dxc5 {[%clk 0:01:10]} 19. Bxb7 {[%clk 0:01:58]}  Rb8 {[%clk 0:00:48]} 20. Bc6 {[%clk 0:01:52]}  Qd4 {[%clk 0:00:44]} 21. Qxd4 {[%clk 0:01:43]}  cxd4 {[%clk 0:00:45]} 22. Rfd1 {[%clk 0:01:39]}  Rbd8 {[%clk 0:00:37]} 23. Bd5 {[%clk 0:01:38]}  Rfe8 {[%clk 0:00:36]} 24. Kf1 {[%clk 0:01:31]}  d3 {[%clk 0:00:34]} 25. exd3 {[%clk 0:01:28]}  Bd7 {[%clk 0:00:34]} 26. Re1 {[%clk 0:01:26]}  Bxb5 {[%clk 0:00:30]} 27. Rxe8 {[%clk 0:01:23]}  Bxe8 {[%clk 0:00:31]} 28. Re1 {[%clk 0:01:21]}  c6 {[%clk 0:00:30]} 29. Be4 {[%clk 0:01:17]}  f5 {[%clk 0:00:30]} 30. Bg2 {[%clk 0:01:07]}  Bf7 {[%clk 0:00:31]} 31. Ke2 {[%clk 0:00:39]}  Re8+ {[%clk 0:00:28]} 32. Kd2 {[%clk 0:00:38]}  Rb8 {[%clk 0:00:27]} 33. Re2 {[%clk 0:00:32]}  c5 {[%clk 0:00:26]} 34. Kc3 {[%clk 0:00:22]}  Kf6 {[%clk 0:00:24]} 35. Rb2 {[%clk 0:00:18]}  Rxb2 {[%clk 0:00:20]} 36. Kxb2 {[%clk 0:00:18]}  Ke5 {[%clk 0:00:20]} 37. Kc3 {[%clk 0:00:19]}  g5 {[%clk 0:00:18]} 38. a3 {[%clk 0:00:14]}  f4 {[%clk 0:00:17]} 39. Be4 {[%clk 0:00:10]}  h6 {[%clk 0:00:14]} 40. gxf4+ {[%clk 0:00:09]}  gxf4 {[%clk 0:00:13]} 41. f3 {[%clk 0:00:09]}  Be8 {[%clk 0:00:12]} 42. Bd5 {[%clk 0:00:05]}  Bd7 {[%clk 0:00:09]} 43. Be4 {[%clk 0:00:05]}  Be6 {[%clk 0:00:05]} 44. Bh7 {[%clk 0:00:03]}  Bc8 {[%clk 0:00:04]} 45. Be4 {[%clk 0:00:02]}  Bd7 {[%clk 0:00:03]} 46. Bh7 {[%clk 0:00:02]}  Ba4 {[%clk 0:00:03]} 47. Be4 {[%clk 0:00:02]}  Bd1 {[%clk 0:00:04]} 48. Bd5 {[%clk 0:00:01]}  Be2 {[%clk 0:00:04]} 49. Be4 {[%clk 0:00:02]}  Bf1 {[%clk 0:00:04]} 50. Kb3 {[%clk 0:00:01]}  Bh3 {[%clk 0:00:05]} 51. Ka4 {[%clk 0:00:02]}  Kd4 {[%clk 0:00:04]} 52. Kxa5 {[%clk 0:00:02]}  Bf1 {[%clk 0:00:05]} 53. Kb5 {[%clk 0:00:03]}  Be2 {[%clk 0:00:04]} 54. a4 {[%clk 0:00:02]} 1-0


[Site "https://www.chess.com"]

[Event "Titled Tuesday Blitz July 13 2021"]
[White "Tronenkovs, Valdis"]
[Black "Vazquez Espino, Uriel"]
[WhiteFideId "11601558"]
[BlackFideId "5119138"]
[WhiteElo "2232"]
[BlackElo "2244"]
[Result "1-0"]
[Round "11"]
[TimeControl "180+1"]
[Date "2021.07.13"]
[WhiteClock "0:00:12"]
[BlackClock "0:00:06"]

1. e4 {[%clk 0:03:00]}  c5 {[%clk 0:02:57]} 2. Ne2 {[%clk 0:03:00]}  e6 {[%clk 0:02:55]} 3. Nbc3 {[%clk 0:02:57]}  Nc6 {[%clk 0:02:55]} 4. d4 {[%clk 0:02:57]}  cxd4 {[%clk 0:02:55]} 5. Nxd4 {[%clk 0:02:58]}  Qc7 {[%clk 0:02:55]} 6. Be3 {[%clk 0:02:58]}  a6 {[%clk 0:02:53]} 7. Qf3 {[%clk 0:02:58]}  Ne5 {[%clk 0:02:39]} 8. Qg3 {[%clk 0:02:57]}  h5 {[%clk 0:02:38]} 9. f4 {[%clk 0:02:43]}  h4 {[%clk 0:02:27]} 10. Qh3 {[%clk 0:02:39]}  Ng6 {[%clk 0:02:26]} 11. Qf3 {[%clk 0:02:24]}  Bb4 {[%clk 0:02:15]} 12. Ne2 {[%clk 0:02:13]}  Nf6 {[%clk 0:02:09]} 13. O-O-O {[%clk 0:02:06]}  b5 {[%clk 0:02:04]} 14. g4 {[%clk 0:01:27]}  hxg3 {[%clk 0:01:37]} 15. hxg3 {[%clk 0:01:28]}  Rxh1 {[%clk 0:01:35]} 16. Qxh1 {[%clk 0:01:28]}  Bb7 {[%clk 0:01:35]} 17. Bg2 {[%clk 0:01:03]}  O-O-O {[%clk 0:01:32]} 18. e5 {[%clk 0:00:58]}  Ng4 {[%clk 0:01:24]} 19. Bd4 {[%clk 0:00:47]}  Rh8 {[%clk 0:01:20]} 20. Qg1 {[%clk 0:00:45]}  Rh2 {[%clk 0:01:07]} 21. Bxb7+ {[%clk 0:00:37]}  Qxb7 {[%clk 0:01:08]} 22. Bc5 {[%clk 0:00:34]}  Bxc3 {[%clk 0:00:54]} 23. Nxc3 {[%clk 0:00:35]}  Qg2 {[%clk 0:00:53]} 24. Qxg2 {[%clk 0:00:25]}  Rxg2 {[%clk 0:00:54]} 25. Ne4 {[%clk 0:00:22]}  f5 {[%clk 0:00:43]} 26. exf6 {[%clk 0:00:18]}  gxf6 {[%clk 0:00:42]} 27. f5 {[%clk 0:00:17]}  N6e5 {[%clk 0:00:34]} 28. a4 {[%clk 0:00:15]}  bxa4 {[%clk 0:00:26]} 29. Kb1 {[%clk 0:00:06]}  d5 {[%clk 0:00:24]} 30. Nd6+ {[%clk 0:00:05]}  Kd7 {[%clk 0:00:24]} 31. fxe6+ {[%clk 0:00:05]}  Kxe6 {[%clk 0:00:24]} 32. Nb7 {[%clk 0:00:04]}  Rxg3 {[%clk 0:00:22]} 33. Nd8+ {[%clk 0:00:04]}  Kf5 {[%clk 0:00:21]} 34. Rxd5 {[%clk 0:00:05]}  Rf3 {[%clk 0:00:20]} 35. Be7 {[%clk 0:00:04]}  Rf1+ {[%clk 0:00:19]} 36. Ka2 {[%clk 0:00:04]}  Ke4 {[%clk 0:00:20]} 37. Ra5 {[%clk 0:00:04]}  f5 {[%clk 0:00:19]} 38. Rxa4+ {[%clk 0:00:05]}  Kf3 {[%clk 0:00:19]} 39. Ne6 {[%clk 0:00:05]}  Kg3 {[%clk 0:00:17]} 40. Bd6 {[%clk 0:00:04]}  Kh4 {[%clk 0:00:16]} 41. Bxe5 {[%clk 0:00:03]}  Re1 {[%clk 0:00:14]} 42. Bf6+ {[%clk 0:00:04]}  Kh5 {[%clk 0:00:14]} 43. Nf4+ {[%clk 0:00:04]}  Kh6 {[%clk 0:00:13]} 44. Bc3 {[%clk 0:00:05]}  Rf1 {[%clk 0:00:12]} 45. Rxa6+ {[%clk 0:00:05]}  Kh7 {[%clk 0:00:11]} 46. Nd3 {[%clk 0:00:05]}  Ne3 {[%clk 0:00:09]} 47. Kb3 {[%clk 0:00:05]}  f4 {[%clk 0:00:09]} 48. Rf6 {[%clk 0:00:04]}  f3 {[%clk 0:00:08]} 49. Bd4 {[%clk 0:00:04]}  Nd1 {[%clk 0:00:08]} 50. Bf2 {[%clk 0:00:04]}  Nxf2 {[%clk 0:00:07]} 51. Rxf3 {[%clk 0:00:04]}  Rd1 {[%clk 0:00:04]} 52. Rxf2 {[%clk 0:00:04]}  Ra1 {[%clk 0:00:04]} 53. Kc3 {[%clk 0:00:05]}  Kg6 {[%clk 0:00:04]} 54. b3 {[%clk 0:00:05]}  Ra6 {[%clk 0:00:04]} 55. Re2 {[%clk 0:00:06]}  Rc6+ {[%clk 0:00:05]} 56. Kd2 {[%clk 0:00:06]}  Rd6 {[%clk 0:00:06]} 57. Rf2 {[%clk 0:00:07]}  Rd7 {[%clk 0:00:06]} 58. Re2 {[%clk 0:00:08]}  Rd8 {[%clk 0:00:07]} 59. Re3 {[%clk 0:00:09]}  Rd7 {[%clk 0:00:07]} 60. Kd1 {[%clk 0:00:09]}  Rd8 {[%clk 0:00:08]} 61. Kc1 {[%clk 0:00:10]}  Rh8 {[%clk 0:00:08]} 62. Ne5+ {[%clk 0:00:10]}  Kf5 {[%clk 0:00:08]} 63. Nd3 {[%clk 0:00:11]}  Rd8 {[%clk 0:00:08]} 64. Re1 {[%clk 0:00:12]}  Rb8 {[%clk 0:00:08]} 65. Kb2 {[%clk 0:00:12]}  Rc8 {[%clk 0:00:08]} 66. b4 {[%clk 0:00:13]}  Rb8 {[%clk 0:00:08]} 67. Kb3 {[%clk 0:00:14]}  Rc8 {[%clk 0:00:08]} 68. Re5+ {[%clk 0:00:15]}  Kf6 {[%clk 0:00:08]} 69. Rc5 {[%clk 0:00:16]}  Rd8 {[%clk 0:00:08]} 70. Kc3 {[%clk 0:00:16]}  Ke6 {[%clk 0:00:08]} 71. b5 {[%clk 0:00:15]}  Rg8 {[%clk 0:00:08]} 72. b6 {[%clk 0:00:14]}  Rg1 {[%clk 0:00:09]} 73. b7 {[%clk 0:00:14]}  Rb1 {[%clk 0:00:10]} 74. Nb4 {[%clk 0:00:14]}  Rb3+ {[%clk 0:00:06]} 75. cxb3 {[%clk 0:00:12]} 1-0


[Site "https://www.chess.com"]